{"text_format":"3","workbook":"xlsx","n_sheets":2,"sheets":["งบประมาณงานแต่งงาน","รายละเอียดงบประมาณ"],"not_rendered":{"charts":1,"images":1,"defined_names":2},"read":"whole","date_system":"1900"}

{"sheet":"งบประมาณงานแต่งงาน","index":0,"n_rows":16,"n_cols":16,"rows_kept":16,"merged":[[1,1,1,5]]}
[{"$nulls":6}," "]
[null,"ลิช่า + แดเนียล\nผูกปม"]
[{"$nulls":7}," "]
[]
[null,"ประเภท","ค่าใช้จ่ายโดยประมาณ","ค่าใช้จ่ายตามจริง","ผลต่าง","% งบประมาณ",{"$nulls":3},"ไม่เรียงลำดับ","ค่าใช้จ่ายโดยประมาณ","ค่าใช้จ่ายตามจริง","ค่าใช้จ่ายโดยประมาณ - ค่าลำดับ","อันดับ","#","เรียง"]
[null,{"$f":"P6","v":"แผนกต้อนรับ"},{"$f":"VLOOKUP(TBL_Summary[[#This Row],[ประเภท]],TBL_RankingData,2,FALSE)","v":{"v":14500,"d":"฿14,500"}},{"$f":"IF(VLOOKUP(TBL_Summary[[#This Row],[ประเภท]],TBL_RankingData,3,FALSE)=0,\"\",VLOOKUP(TBL_Summary[[#This Row],[ประเภท]],TBL_RankingData,3,FALSE))","v":{"v":12800,"d":"฿12,800"}},{"$f":"IF(OR(TBL_Summary[[#This Row],[ค่าใช้จ่ายโดยประมาณ]]=\"\",TBL_Summary[[#This Row],[ค่าใช้จ่ายตามจริง]]=\"\"),\"\",TBL_Summary[[#This Row],[ค่าใช้จ่ายโดยประมาณ]]-TBL_Summary[[#This Row],[ค่าใช้จ่ายตามจริง]])","v":{"v":1700,"d":"฿1,700"}},{"$f":"TBL_Summary[[#This Row],[ค่าใช้จ่ายโดยประมาณ]]/SUM(TBL_Summary[ค่าใช้จ่ายโดยประมาณ])","v":{"v":0.48739495798319327,"d":"48.7%"}},{"$nulls":3},"แผนกต้อนรับ",{"$f":"TBL_Reception[[#Totals],[โดยประมาณ]]","v":14500},{"$f":"TBL_Reception[[#Totals],[ตามจริง]]","v":12800},{"$f":"K6-O6/100","v":14499.99},{"$f":"_xlfn.RANK.AVG(M6,$M$6:$M$15)","v":1},1,{"$f":"INDEX(TBL_RankingData,MATCH(O6,$N$6:$N$15,0),1)","v":"แผนกต้อนรับ"}]
[null,{"$f":"P7","v":"เครื่องแต่งกาย"},{"$f":"VLOOKUP(TBL_Summary[[#This Row],[ประเภท]],TBL_RankingData,2,FALSE)","v":{"v":4000,"d":"฿4,000"}},{"$f":"IF(VLOOKUP(TBL_Summary[[#This Row],[ประเภท]],TBL_RankingData,3,FALSE)=0,\"\",VLOOKUP(TBL_Summary[[#This Row],[ประเภท]],TBL_RankingData,3,FALSE))","v":{"v":2900,"d":"฿2,900"}},{"$f":"IF(OR(TBL_Summary[[#This Row],[ค่าใช้จ่ายโดยประมาณ]]=\"\",TBL_Summary[[#This Row],[ค่าใช้จ่ายตามจริง]]=\"\"),\"\",TBL_Summary[[#This Row],[ค่าใช้จ่ายโดยประมาณ]]-TBL_Summary[[#This Row],[ค่าใช้จ่ายตามจริง]])","v":{"v":1100,"d":"฿1,100"}},{"$f":"TBL_Summary[[#This Row],[ค่าใช้จ่ายโดยประมาณ]]/SUM(TBL_Summary[ค่าใช้จ่ายโดยประมาณ])","v":{"v":0.13445378151260504,"d":"13.4%"}},{"$nulls":3},"เครื่องแต่งกาย",{"$f":"TBL_Attire[[#Totals],[โดยประมาณ]]","v":4000},{"$f":"TBL_Attire[[#Totals],[ตามจริง]]","v":2900},{"$f":"K7-O7/100","v":3999.98},2,2,"เครื่องแต่งกาย"]
[null,"ดอกไม้และการตกแต่ง",{"$f":"VLOOKUP(TBL_Summary[[#This Row],[ประเภท]],TBL_RankingData,2,FALSE)","v":{"v":3000,"d":"฿3,000"}},{"$f":"IF(VLOOKUP(TBL_Summary[[#This Row],[ประเภท]],TBL_RankingData,3,FALSE)=0,\"\",VLOOKUP(TBL_Summary[[#This Row],[ประเภท]],TBL_RankingData,3,FALSE))","v":""},{"$f":"IF(OR(TBL_Summary[[#This Row],[ค่าใช้จ่ายโดยประมาณ]]=\"\",TBL_Summary[[#This Row],[ค่าใช้จ่ายตามจริง]]=\"\"),\"\",TBL_Summary[[#This Row],[ค่าใช้จ่ายโดยประมาณ]]-TBL_Summary[[#This Row],[ค่าใช้จ่ายตามจริง]])","v":""},{"$f":"TBL_Summary[[#This Row],[ค่าใช้จ่ายโดยประมาณ]]/SUM(TBL_Summary[ค่าใช้จ่ายโดยประมาณ])","v":{"v":0.10084033613445378,"d":"10.1%"}},{"$nulls":3},"ดอกไม้และการตกแต่ง",{"$f":"TBL_FlowersAndDecor[[#Totals],[โดยประมาณ]]","v":3000},{"$f":"TBL_FlowersAndDecor[[#Totals],[ตามจริง]]","v":0},2999.97,3,3,"ดอกไม้และการตกแต่ง"]
[null,"รูปถ่ายและวิดีโอ",{"$f":"VLOOKUP(TBL_Summary[[#This Row],[ประเภท]],TBL_RankingData,2,FALSE)","v":{"v":2500,"d":"฿2,500"}},{"$f":"IF(VLOOKUP(TBL_Summary[[#This Row],[ประเภท]],TBL_RankingData,3,FALSE)=0,\"\",VLOOKUP(TBL_Summary[[#This Row],[ประเภท]],TBL_RankingData,3,FALSE))","v":""},{"$f":"IF(OR(TBL_Summary[[#This Row],[ค่าใช้จ่ายโดยประมาณ]]=\"\",TBL_Summary[[#This Row],[ค่าใช้จ่ายตามจริง]]=\"\"),\"\",TBL_Summary[[#This Row],[ค่าใช้จ่ายโดยประมาณ]]-TBL_Summary[[#This Row],[ค่าใช้จ่ายตามจริง]])","v":""},{"$f":"TBL_Summary[[#This Row],[ค่าใช้จ่ายโดยประมาณ]]/SUM(TBL_Summary[ค่าใช้จ่ายโดยประมาณ])","v":{"v":0.08403361344537816,"d":"8.4%"}},{"$nulls":3},"ดนตรี",{"$f":"TBL_Music[[#Totals],[โดยประมาณ]]","v":1800},{"$f":"TBL_Music[[#Totals],[ตามจริง]]","v":0},1799.96,5,4,"รูปถ่ายและวิดีโอ"]
[null,"ดนตรี",{"$f":"VLOOKUP(TBL_Summary[[#This Row],[ประเภท]],TBL_RankingData,2,FALSE)","v":{"v":1800,"d":"฿1,800"}},{"$f":"IF(VLOOKUP(TBL_Summary[[#This Row],[ประเภท]],TBL_RankingData,3,FALSE)=0,\"\",VLOOKUP(TBL_Summary[[#This Row],[ประเภท]],TBL_RankingData,3,FALSE))","v":""},{"$f":"IF(OR(TBL_Summary[[#This Row],[ค่าใช้จ่ายโดยประมาณ]]=\"\",TBL_Summary[[#This Row],[ค่าใช้จ่ายตามจริง]]=\"\"),\"\",TBL_Summary[[#This Row],[ค่าใช้จ่ายโดยประมาณ]]-TBL_Summary[[#This Row],[ค่าใช้จ่ายตามจริง]])","v":""},{"$f":"TBL_Summary[[#This Row],[ค่าใช้จ่ายโดยประมาณ]]/SUM(TBL_Summary[ค่าใช้จ่ายโดยประมาณ])","v":{"v":0.06050420168067227,"d":"6.1%"}},{"$nulls":3},"รูปถ่ายและวิดีโอ",{"$f":"TBL_PhotographsAndVideo[[#Totals],[โดยประมาณ]]","v":2500},{"$f":"TBL_PhotographsAndVideo[[#Totals],[ตามจริง]]","v":0},2499.95,4,5,"ดนตรี"]
[null,"ของชำร่วยและของขวัญ",{"$f":"VLOOKUP(TBL_Summary[[#This Row],[ประเภท]],TBL_RankingData,2,FALSE)","v":{"v":1100,"d":"฿1,100"}},{"$f":"IF(VLOOKUP(TBL_Summary[[#This Row],[ประเภท]],TBL_RankingData,3,FALSE)=0,\"\",VLOOKUP(TBL_Summary[[#This Row],[ประเภท]],TBL_RankingData,3,FALSE))","v":""},{"$f":"IF(OR(TBL_Summary[[#This Row],[ค่าใช้จ่ายโดยประมาณ]]=\"\",TBL_Summary[[#This Row],[ค่าใช้จ่ายตามจริง]]=\"\"),\"\",TBL_Summary[[#This Row],[ค่าใช้จ่ายโดยประมาณ]]-TBL_Summary[[#This Row],[ค่าใช้จ่ายตามจริง]])","v":""},{"$f":"TBL_Summary[[#This Row],[ค่าใช้จ่ายโดยประมาณ]]/SUM(TBL_Summary[ค่าใช้จ่ายโดยประมาณ])","v":{"v":0.03697478991596639,"d":"3.7%"}},{"$nulls":3},"ของชำร่วยและของขวัญ",{"$f":"TBL_FavorsAndGifts[[#Totals],[โดยประมาณ]]","v":1100},{"$f":"TBL_FavorsAndGifts[[#Totals],[ตามจริง]]","v":0},1099.94,6,6,"ของชำร่วยและของขวัญ"]
[null,{"$f":"P12","v":"แหวนแต่งงาน"},{"$f":"VLOOKUP(TBL_Summary[[#This Row],[ประเภท]],TBL_RankingData,2,FALSE)","v":{"v":1100,"d":"฿1,100"}},{"$f":"IF(VLOOKUP(TBL_Summary[[#This Row],[ประเภท]],TBL_RankingData,3,FALSE)=0,\"\",VLOOKUP(TBL_Summary[[#This Row],[ประเภท]],TBL_RankingData,3,FALSE))","v":""},{"$f":"IF(OR(TBL_Summary[[#This Row],[ค่าใช้จ่ายโดยประมาณ]]=\"\",TBL_Summary[[#This Row],[ค่าใช้จ่ายตามจริง]]=\"\"),\"\",TBL_Summary[[#This Row],[ค่าใช้จ่ายโดยประมาณ]]-TBL_Summary[[#This Row],[ค่าใช้จ่ายตามจริง]])","v":""},{"$f":"TBL_Summary[[#This Row],[ค่าใช้จ่ายโดยประมาณ]]/SUM(TBL_Summary[ค่าใช้จ่ายโดยประมาณ])","v":{"v":0.03697478991596639,"d":"3.7%"}},{"$nulls":3},"งานพิธี",{"$f":"TBL_Ceremony[[#Totals],[โดยประมาณ]]","v":800},{"$f":"TBL_Ceremony[[#Totals],[ตามจริง]]","v":0},799.93,8,7,"แหวนแต่งงาน"]
[null,"งานพิธี",{"$f":"VLOOKUP(TBL_Summary[[#This Row],[ประเภท]],TBL_RankingData,2,FALSE)","v":{"v":800,"d":"฿800"}},{"$f":"IF(VLOOKUP(TBL_Summary[[#This Row],[ประเภท]],TBL_RankingData,3,FALSE)=0,\"\",VLOOKUP(TBL_Summary[[#This Row],[ประเภท]],TBL_RankingData,3,FALSE))","v":""},{"$f":"IF(OR(TBL_Summary[[#This Row],[ค่าใช้จ่ายโดยประมาณ]]=\"\",TBL_Summary[[#This Row],[ค่าใช้จ่ายตามจริง]]=\"\"),\"\",TBL_Summary[[#This Row],[ค่าใช้จ่ายโดยประมาณ]]-TBL_Summary[[#This Row],[ค่าใช้จ่ายตามจริง]])","v":""},{"$f":"TBL_Summary[[#This Row],[ค่าใช้จ่ายโดยประมาณ]]/SUM(TBL_Summary[ค่าใช้จ่ายโดยประมาณ])","v":{"v":0.02689075630252101,"d":"2.7%"}},{"$nulls":3},"เครื่องเขียน",{"$f":"TBL_Stationery[[#Totals],[โดยประมาณ]]","v":500},{"$f":"TBL_Stationery[[#Totals],[ตามจริง]]","v":0},499.92,9,8,"งานพิธี"]
[null,"เครื่องเขียน",{"$f":"VLOOKUP(TBL_Summary[[#This Row],[ประเภท]],TBL_RankingData,2,FALSE)","v":{"v":500,"d":"฿500"}},{"$f":"IF(VLOOKUP(TBL_Summary[[#This Row],[ประเภท]],TBL_RankingData,3,FALSE)=0,\"\",VLOOKUP(TBL_Summary[[#This Row],[ประเภท]],TBL_RankingData,3,FALSE))","v":""},{"$f":"IF(OR(TBL_Summary[[#This Row],[ค่าใช้จ่ายโดยประมาณ]]=\"\",TBL_Summary[[#This Row],[ค่าใช้จ่ายตามจริง]]=\"\"),\"\",TBL_Summary[[#This Row],[ค่าใช้จ่ายโดยประมาณ]]-TBL_Summary[[#This Row],[ค่าใช้จ่ายตามจริง]])","v":""},{"$f":"TBL_Summary[[#This Row],[ค่าใช้จ่ายโดยประมาณ]]/SUM(TBL_Summary[ค่าใช้จ่ายโดยประมาณ])","v":{"v":0.01680672268907563,"d":"1.7%"}},{"$nulls":3},"แหวนแต่งงาน",{"$f":"TBL_WeddingRings[[#Totals],[โดยประมาณ]]","v":1100},{"$f":"TBL_WeddingRings[[#Totals],[ตามจริง]]","v":0},1099.91,7,9,"เครื่องเขียน"]
[null,"การเดินทาง",{"$f":"VLOOKUP(TBL_Summary[[#This Row],[ประเภท]],TBL_RankingData,2,FALSE)","v":{"v":450,"d":"฿450"}},{"$f":"IF(VLOOKUP(TBL_Summary[[#This Row],[ประเภท]],TBL_RankingData,3,FALSE)=0,\"\",VLOOKUP(TBL_Summary[[#This Row],[ประเภท]],TBL_RankingData,3,FALSE))","v":""},{"$f":"IF(OR(TBL_Summary[[#This Row],[ค่าใช้จ่ายโดยประมาณ]]=\"\",TBL_Summary[[#This Row],[ค่าใช้จ่ายตามจริง]]=\"\"),\"\",TBL_Summary[[#This Row],[ค่าใช้จ่ายโดยประมาณ]]-TBL_Summary[[#This Row],[ค่าใช้จ่ายตามจริง]])","v":""},{"$f":"TBL_Summary[[#This Row],[ค่าใช้จ่ายโดยประมาณ]]/SUM(TBL_Summary[ค่าใช้จ่ายโดยประมาณ])","v":{"v":0.015126050420168067,"d":"1.5%"}},{"$nulls":3},"การเดินทาง",{"$f":"TBL_Transportation[[#Totals],[โดยประมาณ]]","v":450},{"$f":"TBL_Transportation[[#Totals],[ตามจริง]]","v":0},449.9,10,10,"การเดินทาง"]
[null,"ผลรวม",{"$f":"SUBTOTAL(109,TBL_Summary[ค่าใช้จ่ายโดยประมาณ])","v":{"v":29750,"d":"฿29,750"}},{"$f":"SUBTOTAL(109,TBL_Summary[ค่าใช้จ่ายตามจริง])","v":{"v":15700,"d":"฿15,700"}},{"$f":"TBL_Summary[[#Totals],[ค่าใช้จ่ายโดยประมาณ]]-TBL_Summary[[#Totals],[ค่าใช้จ่ายตามจริง]]","v":{"v":14050,"d":"฿14,050"}},{"$f":"SUBTOTAL(109,TBL_Summary[% งบประมาณ])","v":{"v":1,"d":"100%"}}]

{"sheet":"รายละเอียดงบประมาณ","index":1,"n_rows":91,"n_cols":6,"rows_kept":91}
[{"$nulls":5}," "]
[null,"รายละเอียดงบประมาณ"]
[]
[null,"แผนกต้อนรับ","โดยประมาณ","ตามจริง","ผลต่าง"]
[null,"สถานที่และค่าเช่า",{"v":8000,"d":"฿8,000.00"},{"v":7800,"d":"฿7,800.00"},{"$f":"IF(OR(TBL_Reception[[#This Row],[โดยประมาณ]]=\"\",TBL_Reception[[#This Row],[ตามจริง]]=\"\"),\"\",TBL_Reception[[#This Row],[โดยประมาณ]]-TBL_Reception[[#This Row],[ตามจริง]])","v":{"v":200,"d":"฿200.00"}}]
[null,"อาหารและบริการ",{"v":4000,"d":"฿4,000.00"},{"v":4200,"d":"฿4,200.00"},{"$f":"IF(OR(TBL_Reception[[#This Row],[โดยประมาณ]]=\"\",TBL_Reception[[#This Row],[ตามจริง]]=\"\"),\"\",TBL_Reception[[#This Row],[โดยประมาณ]]-TBL_Reception[[#This Row],[ตามจริง]])","v":{"v":-200,"d":"-฿200.00"}}]
[null,"เครื่องดื่ม",{"v":1000,"d":"฿1,000.00"},{"v":800,"d":"฿800.00"},{"$f":"IF(OR(TBL_Reception[[#This Row],[โดยประมาณ]]=\"\",TBL_Reception[[#This Row],[ตามจริง]]=\"\"),\"\",TBL_Reception[[#This Row],[โดยประมาณ]]-TBL_Reception[[#This Row],[ตามจริง]])","v":{"v":200,"d":"฿200.00"}}]
[null,"เค้ก",{"v":1000,"d":"฿1,000.00"},null,{"$f":"IF(OR(TBL_Reception[[#This Row],[โดยประมาณ]]=\"\",TBL_Reception[[#This Row],[ตามจริง]]=\"\"),\"\",TBL_Reception[[#This Row],[โดยประมาณ]]-TBL_Reception[[#This Row],[ตามจริง]])","v":""}]
[null,"ค่าธรรมเนียมเบ็ดเตล็ด",{"v":500,"d":"฿500.00"},null,{"$f":"IF(OR(TBL_Reception[[#This Row],[โดยประมาณ]]=\"\",TBL_Reception[[#This Row],[ตามจริง]]=\"\"),\"\",TBL_Reception[[#This Row],[โดยประมาณ]]-TBL_Reception[[#This Row],[ตามจริง]])","v":""}]
[null,"ผลรวมค่าใช้จ่ายแผนกต้อนรับ",{"$f":"SUBTOTAL(109,TBL_Reception[โดยประมาณ])","v":{"v":14500,"d":"฿14,500.00"}},{"$f":"SUBTOTAL(109,TBL_Reception[ตามจริง])","v":{"v":12800,"d":"฿12,800.00"}},{"$f":"TBL_Reception[[#Totals],[โดยประมาณ]]-TBL_Reception[[#Totals],[ตามจริง]]","v":{"v":1700,"d":"฿1,700.00"}}]
[]
[]
[null,"เครื่องแต่งกาย","โดยประมาณ","ตามจริง","ผลต่าง"]
[null,"ทักซ์, สูท, และ/หรือชุดเดรส",{"v":3000,"d":"฿3,000.00"},{"v":2900,"d":"฿2,900.00"},{"$f":"IF(OR(TBL_Attire[[#This Row],[โดยประมาณ]]=\"\",TBL_Attire[[#This Row],[ตามจริง]]=\"\"),\"\",TBL_Attire[[#This Row],[โดยประมาณ]]-TBL_Attire[[#This Row],[ตามจริง]])","v":{"v":100,"d":"฿100.00"}}]
[null,"แก้ชุด",{"v":100,"d":"฿100.00"},null,{"$f":"IF(OR(TBL_Attire[[#This Row],[โดยประมาณ]]=\"\",TBL_Attire[[#This Row],[ตามจริง]]=\"\"),\"\",TBL_Attire[[#This Row],[โดยประมาณ]]-TBL_Attire[[#This Row],[ตามจริง]])","v":""}]
[null,"เครื่องประดับผมและผ้าคลุมหน้า",{"v":200,"d":"฿200.00"},null,{"$f":"IF(OR(TBL_Attire[[#This Row],[โดยประมาณ]]=\"\",TBL_Attire[[#This Row],[ตามจริง]]=\"\"),\"\",TBL_Attire[[#This Row],[โดยประมาณ]]-TBL_Attire[[#This Row],[ตามจริง]])","v":""}]
[null,"เครื่องประดับ",{"v":100,"d":"฿100.00"},null,{"$f":"IF(OR(TBL_Attire[[#This Row],[โดยประมาณ]]=\"\",TBL_Attire[[#This Row],[ตามจริง]]=\"\"),\"\",TBL_Attire[[#This Row],[โดยประมาณ]]-TBL_Attire[[#This Row],[ตามจริง]])","v":""}]
[null,"แต่งหน้าทำผม",{"v":500,"d":"฿500.00"},null,{"$f":"IF(OR(TBL_Attire[[#This Row],[โดยประมาณ]]=\"\",TBL_Attire[[#This Row],[ตามจริง]]=\"\"),\"\",TBL_Attire[[#This Row],[โดยประมาณ]]-TBL_Attire[[#This Row],[ตามจริง]])","v":""}]
[null,"ค่าธรรมเนียมเบ็ดเตล็ด",{"v":100,"d":"฿100.00"},null,{"$f":"IF(OR(TBL_Attire[[#This Row],[โดยประมาณ]]=\"\",TBL_Attire[[#This Row],[ตามจริง]]=\"\"),\"\",TBL_Attire[[#This Row],[โดยประมาณ]]-TBL_Attire[[#This Row],[ตามจริง]])","v":""}]
[null,"ผลรวมของเครื่องแต่งกาย",{"$f":"SUBTOTAL(109,TBL_Attire[โดยประมาณ])","v":{"v":4000,"d":"฿4,000.00"}},{"$f":"SUBTOTAL(109,TBL_Attire[ตามจริง])","v":{"v":2900,"d":"฿2,900.00"}},{"$f":"TBL_Attire[[#Totals],[โดยประมาณ]]-TBL_Attire[[#Totals],[ตามจริง]]","v":{"v":1100,"d":"฿1,100.00"}}]
[]
[]
[null,"ดอกไม้และการตกแต่ง","โดยประมาณ","ตามจริง","ผลต่าง"]
[null,"การจัดเตรียมดอกไม้สำหรับพิธี",{"v":1000,"d":"฿1,000.00"},null,{"$f":"IF(OR(TBL_FlowersAndDecor[[#This Row],[โดยประมาณ]]=\"\",TBL_FlowersAndDecor[[#This Row],[ตามจริง]]=\"\"),\"\",TBL_FlowersAndDecor[[#This Row],[โดยประมาณ]]-TBL_FlowersAndDecor[[#This Row],[ตามจริง]])","v":""}]
[null,"ดอกไม้และกระเช้าของเด็กผู้หญิง",{"v":500,"d":"฿500.00"},null,{"$f":"IF(OR(TBL_FlowersAndDecor[[#This Row],[โดยประมาณ]]=\"\",TBL_FlowersAndDecor[[#This Row],[ตามจริง]]=\"\"),\"\",TBL_FlowersAndDecor[[#This Row],[โดยประมาณ]]-TBL_FlowersAndDecor[[#This Row],[ตามจริง]])","v":""}]
[null,"หมอนแหวน",{"v":100,"d":"฿100.00"},null,{"$f":"IF(OR(TBL_FlowersAndDecor[[#This Row],[โดยประมาณ]]=\"\",TBL_FlowersAndDecor[[#This Row],[ตามจริง]]=\"\"),\"\",TBL_FlowersAndDecor[[#This Row],[โดยประมาณ]]-TBL_FlowersAndDecor[[#This Row],[ตามจริง]])","v":""}]
[null,"ช่อดอกไม้",{"v":500,"d":"฿500.00"},null,{"$f":"IF(OR(TBL_FlowersAndDecor[[#This Row],[โดยประมาณ]]=\"\",TBL_FlowersAndDecor[[#This Row],[ตามจริง]]=\"\"),\"\",TBL_FlowersAndDecor[[#This Row],[โดยประมาณ]]-TBL_FlowersAndDecor[[#This Row],[ตามจริง]])","v":""}]
[null,"ดอกไม้ติดปกเสื้อสุภาพบุรุษ",{"v":100,"d":"฿100.00"},null,{"$f":"IF(OR(TBL_FlowersAndDecor[[#This Row],[โดยประมาณ]]=\"\",TBL_FlowersAndDecor[[#This Row],[ตามจริง]]=\"\"),\"\",TBL_FlowersAndDecor[[#This Row],[โดยประมาณ]]-TBL_FlowersAndDecor[[#This Row],[ตามจริง]])","v":""}]
[null,"ช่อดอกไม้กลัดหน้าอกสุภาพสตรี",{"v":200,"d":"฿200.00"},null,{"$f":"IF(OR(TBL_FlowersAndDecor[[#This Row],[โดยประมาณ]]=\"\",TBL_FlowersAndDecor[[#This Row],[ตามจริง]]=\"\"),\"\",TBL_FlowersAndDecor[[#This Row],[โดยประมาณ]]-TBL_FlowersAndDecor[[#This Row],[ตามจริง]])","v":""}]
[null,"การตกแต่งแผนกต้อนรับ",{"v":300,"d":"฿300.00"},null,{"$f":"IF(OR(TBL_FlowersAndDecor[[#This Row],[โดยประมาณ]]=\"\",TBL_FlowersAndDecor[[#This Row],[ตามจริง]]=\"\"),\"\",TBL_FlowersAndDecor[[#This Row],[โดยประมาณ]]-TBL_FlowersAndDecor[[#This Row],[ตามจริง]])","v":""}]
[null,"โคมไฟ",{"v":200,"d":"฿200.00"},null,{"$f":"IF(OR(TBL_FlowersAndDecor[[#This Row],[โดยประมาณ]]=\"\",TBL_FlowersAndDecor[[#This Row],[ตามจริง]]=\"\"),\"\",TBL_FlowersAndDecor[[#This Row],[โดยประมาณ]]-TBL_FlowersAndDecor[[#This Row],[ตามจริง]])","v":""}]
[null,"ค่าธรรมเนียมเบ็ดเตล็ด",{"v":100,"d":"฿100.00"},null,{"$f":"IF(OR(TBL_FlowersAndDecor[[#This Row],[โดยประมาณ]]=\"\",TBL_FlowersAndDecor[[#This Row],[ตามจริง]]=\"\"),\"\",TBL_FlowersAndDecor[[#This Row],[โดยประมาณ]]-TBL_FlowersAndDecor[[#This Row],[ตามจริง]])","v":""}]
[null,"ดอกไม้และการตกแต่ง",{"$f":"SUBTOTAL(109,TBL_FlowersAndDecor[โดยประมาณ])","v":{"v":3000,"d":"฿3,000.00"}},{"$f":"SUBTOTAL(109,TBL_FlowersAndDecor[ตามจริง])","v":{"v":0,"d":"฿0.00"}},{"$f":"TBL_FlowersAndDecor[[#Totals],[โดยประมาณ]]-TBL_FlowersAndDecor[[#Totals],[ตามจริง]]","v":{"v":3000,"d":"฿3,000.00"}}]
[]
[]
[null,"ดนตรี","โดยประมาณ","ตามจริง","ผลต่าง"]
[null,"นักดนตรีสำหรับพิธีการ",{"v":700,"d":"฿700.00"},null,{"$f":"IF(OR(TBL_Music[[#This Row],[โดยประมาณ]]=\"\",TBL_Music[[#This Row],[ตามจริง]]=\"\"),\"\",TBL_Music[[#This Row],[โดยประมาณ]]-TBL_Music[[#This Row],[ตามจริง]])","v":""}]
[null,"นักดนตรีสำหรับช่วงค๊อกเทล",{"v":300,"d":"฿300.00"},null,{"$f":"IF(OR(TBL_Music[[#This Row],[โดยประมาณ]]=\"\",TBL_Music[[#This Row],[ตามจริง]]=\"\"),\"\",TBL_Music[[#This Row],[โดยประมาณ]]-TBL_Music[[#This Row],[ตามจริง]])","v":""}]
[null,"วงเปิด ดีเจ หรือความบันเทิงอื่น",{"v":200,"d":"฿200.00"},null,{"$f":"IF(OR(TBL_Music[[#This Row],[โดยประมาณ]]=\"\",TBL_Music[[#This Row],[ตามจริง]]=\"\"),\"\",TBL_Music[[#This Row],[โดยประมาณ]]-TBL_Music[[#This Row],[ตามจริง]])","v":""}]
[null,"ระบบเสียงหรือค่าเช่าพื้นที่เต้นรำ",{"v":400,"d":"฿400.00"},null,{"$f":"IF(OR(TBL_Music[[#This Row],[โดยประมาณ]]=\"\",TBL_Music[[#This Row],[ตามจริง]]=\"\"),\"\",TBL_Music[[#This Row],[โดยประมาณ]]-TBL_Music[[#This Row],[ตามจริง]])","v":""}]
[null,"ค่าธรรมเนียมเบ็ดเตล็ด",{"v":200,"d":"฿200.00"},null,{"$f":"IF(OR(TBL_Music[[#This Row],[โดยประมาณ]]=\"\",TBL_Music[[#This Row],[ตามจริง]]=\"\"),\"\",TBL_Music[[#This Row],[โดยประมาณ]]-TBL_Music[[#This Row],[ตามจริง]])","v":""}]
[null,"ผลรวมของดนตรี",{"$f":"SUBTOTAL(109,TBL_Music[โดยประมาณ])","v":{"v":1800,"d":"฿1,800.00"}},{"$f":"SUBTOTAL(109,TBL_Music[ตามจริง])","v":{"v":0,"d":"฿0.00"}},{"$f":"TBL_Music[[#Totals],[โดยประมาณ]]-TBL_Music[[#Totals],[ตามจริง]]","v":{"v":1800,"d":"฿1,800.00"}}]
[]
[]
[null,"การถ่ายภาพและวิดีโอ","โดยประมาณ","ตามจริง","ผลต่าง"]
[null,"การถ่ายภาพ",{"v":1000,"d":"฿1,000.00"},null,{"$f":"IF(OR(TBL_PhotographsAndVideo[[#This Row],[โดยประมาณ]]=\"\",TBL_PhotographsAndVideo[[#This Row],[ตามจริง]]=\"\"),\"\",TBL_PhotographsAndVideo[[#This Row],[โดยประมาณ]]-TBL_PhotographsAndVideo[[#This Row],[ตามจริง]])","v":""}]
[null,"การถ่ายวิดีโอ",{"v":800,"d":"฿800.00"},null,{"$f":"IF(OR(TBL_PhotographsAndVideo[[#This Row],[โดยประมาณ]]=\"\",TBL_PhotographsAndVideo[[#This Row],[ตามจริง]]=\"\"),\"\",TBL_PhotographsAndVideo[[#This Row],[โดยประมาณ]]-TBL_PhotographsAndVideo[[#This Row],[ตามจริง]])","v":""}]
[null,"สิ่งพิมพ์และอัลบั้มเพิ่มเติม",{"v":500,"d":"฿500.00"},null,{"$f":"IF(OR(TBL_PhotographsAndVideo[[#This Row],[โดยประมาณ]]=\"\",TBL_PhotographsAndVideo[[#This Row],[ตามจริง]]=\"\"),\"\",TBL_PhotographsAndVideo[[#This Row],[โดยประมาณ]]-TBL_PhotographsAndVideo[[#This Row],[ตามจริง]])","v":""}]
[null,"ค่าธรรมเนียมเบ็ดเตล็ด",{"v":200,"d":"฿200.00"},null,{"$f":"IF(OR(TBL_PhotographsAndVideo[[#This Row],[โดยประมาณ]]=\"\",TBL_PhotographsAndVideo[[#This Row],[ตามจริง]]=\"\"),\"\",TBL_PhotographsAndVideo[[#This Row],[โดยประมาณ]]-TBL_PhotographsAndVideo[[#This Row],[ตามจริง]])","v":""}]
[null,"ผลรวมของการถ่ายภาพและวิดีโอ",{"$f":"SUBTOTAL(109,TBL_PhotographsAndVideo[โดยประมาณ])","v":{"v":2500,"d":"฿2,500.00"}},{"$f":"SUBTOTAL(109,TBL_PhotographsAndVideo[ตามจริง])","v":{"v":0,"d":"฿0.00"}},{"$f":"TBL_PhotographsAndVideo[[#Totals],[โดยประมาณ]]-TBL_PhotographsAndVideo[[#Totals],[ตามจริง]]","v":{"v":2500,"d":"฿2,500.00"}}]
[]
[]
[null,"ของชำร่วยและของขวัญ","โดยประมาณ","ตามจริง","ผลต่าง"]
[null,"ของขวัญสำหรับต้อนรับ",{"v":700,"d":"฿700.00"},null,{"$f":"IF(OR(TBL_FavorsAndGifts[[#This Row],[โดยประมาณ]]=\"\",TBL_FavorsAndGifts[[#This Row],[ตามจริง]]=\"\"),\"\",TBL_FavorsAndGifts[[#This Row],[โดยประมาณ]]-TBL_FavorsAndGifts[[#This Row],[ตามจริง]])","v":""}]
[null,"ของขวัญช่วงปาร์ตี้",{"v":200,"d":"฿200.00"},null,{"$f":"IF(OR(TBL_FavorsAndGifts[[#This Row],[โดยประมาณ]]=\"\",TBL_FavorsAndGifts[[#This Row],[ตามจริง]]=\"\"),\"\",TBL_FavorsAndGifts[[#This Row],[โดยประมาณ]]-TBL_FavorsAndGifts[[#This Row],[ตามจริง]])","v":""}]
[null,"ค่าธรรมเนียมเบ็ดเตล็ด",{"v":200,"d":"฿200.00"},null,{"$f":"IF(OR(TBL_FavorsAndGifts[[#This Row],[โดยประมาณ]]=\"\",TBL_FavorsAndGifts[[#This Row],[ตามจริง]]=\"\"),\"\",TBL_FavorsAndGifts[[#This Row],[โดยประมาณ]]-TBL_FavorsAndGifts[[#This Row],[ตามจริง]])","v":""}]
[null,"ของชำร่วยและของขวัญ",{"$f":"SUBTOTAL(109,TBL_FavorsAndGifts[โดยประมาณ])","v":{"v":1100,"d":"฿1,100.00"}},{"$f":"SUBTOTAL(109,TBL_FavorsAndGifts[ตามจริง])","v":{"v":0,"d":"฿0.00"}},{"$f":"TBL_FavorsAndGifts[[#Totals],[โดยประมาณ]]-TBL_FavorsAndGifts[[#Totals],[ตามจริง]]","v":{"v":1100,"d":"฿1,100.00"}}]
[]
[]
[null,"งานพิธี","โดยประมาณ","ตามจริง","ผลต่าง"]
[null,"ค่าธรรมเนียมสถานที่",{"v":500,"d":"฿500.00"},null,{"$f":"IF(OR(TBL_Ceremony[[#This Row],[โดยประมาณ]]=\"\",TBL_Ceremony[[#This Row],[ตามจริง]]=\"\"),\"\",TBL_Ceremony[[#This Row],[โดยประมาณ]]-TBL_Ceremony[[#This Row],[ตามจริง]])","v":""}]
[null,"ค่าธรรมเนียมผู้ประกอบพิธี หรือบริจาคให้โบสถ์",{"v":200,"d":"฿200.00"},null,{"$f":"IF(OR(TBL_Ceremony[[#This Row],[โดยประมาณ]]=\"\",TBL_Ceremony[[#This Row],[ตามจริง]]=\"\"),\"\",TBL_Ceremony[[#This Row],[โดยประมาณ]]-TBL_Ceremony[[#This Row],[ตามจริง]])","v":""}]
[null,"ค่าธรรมเนียมเบ็ดเตล็ด",{"v":100,"d":"฿100.00"},null,{"$f":"IF(OR(TBL_Ceremony[[#This Row],[โดยประมาณ]]=\"\",TBL_Ceremony[[#This Row],[ตามจริง]]=\"\"),\"\",TBL_Ceremony[[#This Row],[โดยประมาณ]]-TBL_Ceremony[[#This Row],[ตามจริง]])","v":""}]
[null,"ผลรวมของงานพิธี",{"$f":"SUBTOTAL(109,TBL_Ceremony[โดยประมาณ])","v":{"v":800,"d":"฿800.00"}},{"$f":"SUBTOTAL(109,TBL_Ceremony[ตามจริง])","v":{"v":0,"d":"฿0.00"}},{"$f":"TBL_Ceremony[[#Totals],[โดยประมาณ]]-TBL_Ceremony[[#Totals],[ตามจริง]]","v":{"v":800,"d":"฿800.00"}}]
[]
[]
[null,"เครื่องเขียน","โดยประมาณ","ตามจริง","ผลต่าง"]
[null,"การ์ดแจ้งวันงาน",{"v":50,"d":"฿50.00"},null,{"$f":"IF(OR(TBL_Stationery[[#This Row],[โดยประมาณ]]=\"\",TBL_Stationery[[#This Row],[ตามจริง]]=\"\"),\"\",TBL_Stationery[[#This Row],[โดยประมาณ]]-TBL_Stationery[[#This Row],[ตามจริง]])","v":""}]
[null,"การเชิญและ RSVPs",{"v":100,"d":"฿100.00"},null,{"$f":"IF(OR(TBL_Stationery[[#This Row],[โดยประมาณ]]=\"\",TBL_Stationery[[#This Row],[ตามจริง]]=\"\"),\"\",TBL_Stationery[[#This Row],[โดยประมาณ]]-TBL_Stationery[[#This Row],[ตามจริง]])","v":""}]
[null,"โปรแกรม",{"v":50,"d":"฿50.00"},null,{"$f":"IF(OR(TBL_Stationery[[#This Row],[โดยประมาณ]]=\"\",TBL_Stationery[[#This Row],[ตามจริง]]=\"\"),\"\",TBL_Stationery[[#This Row],[โดยประมาณ]]-TBL_Stationery[[#This Row],[ตามจริง]])","v":""}]
[null,"การ์ดที่นั่งและสถานที่",{"v":50,"d":"฿50.00"},null,{"$f":"IF(OR(TBL_Stationery[[#This Row],[โดยประมาณ]]=\"\",TBL_Stationery[[#This Row],[ตามจริง]]=\"\"),\"\",TBL_Stationery[[#This Row],[โดยประมาณ]]-TBL_Stationery[[#This Row],[ตามจริง]])","v":""}]
[null,"การ์ดเมนู",{"v":50,"d":"฿50.00"},null,{"$f":"IF(OR(TBL_Stationery[[#This Row],[โดยประมาณ]]=\"\",TBL_Stationery[[#This Row],[ตามจริง]]=\"\"),\"\",TBL_Stationery[[#This Row],[โดยประมาณ]]-TBL_Stationery[[#This Row],[ตามจริง]])","v":""}]
[null,"การ์ดขอบคุณ",{"v":50,"d":"฿50.00"},null,{"$f":"IF(OR(TBL_Stationery[[#This Row],[โดยประมาณ]]=\"\",TBL_Stationery[[#This Row],[ตามจริง]]=\"\"),\"\",TBL_Stationery[[#This Row],[โดยประมาณ]]-TBL_Stationery[[#This Row],[ตามจริง]])","v":""}]
[null,"ค่าไปรษณีย์",{"v":50,"d":"฿50.00"},null,{"$f":"IF(OR(TBL_Stationery[[#This Row],[โดยประมาณ]]=\"\",TBL_Stationery[[#This Row],[ตามจริง]]=\"\"),\"\",TBL_Stationery[[#This Row],[โดยประมาณ]]-TBL_Stationery[[#This Row],[ตามจริง]])","v":""}]
[null,"ค่าธรรมเนียมเบ็ดเตล็ด",{"v":100,"d":"฿100.00"},null,{"$f":"IF(OR(TBL_Stationery[[#This Row],[โดยประมาณ]]=\"\",TBL_Stationery[[#This Row],[ตามจริง]]=\"\"),\"\",TBL_Stationery[[#This Row],[โดยประมาณ]]-TBL_Stationery[[#This Row],[ตามจริง]])","v":""}]
[null,"ผลรวมของเครื่องเขียน",{"$f":"SUBTOTAL(109,TBL_Stationery[โดยประมาณ])","v":{"v":500,"d":"฿500.00"}},{"$f":"SUBTOTAL(109,TBL_Stationery[ตามจริง])","v":{"v":0,"d":"฿0.00"}},{"$f":"TBL_Stationery[[#Totals],[โดยประมาณ]]-TBL_Stationery[[#Totals],[ตามจริง]]","v":{"v":500,"d":"฿500.00"}}]
[]
[]
[null,"แหวนแต่งงาน","โดยประมาณ","ตามจริง","ผลต่าง"]
[null,"แหวนแต่งงาน",{"v":1000,"d":"฿1,000.00"},null,{"$f":"IF(OR(TBL_WeddingRings[[#This Row],[โดยประมาณ]]=\"\",TBL_WeddingRings[[#This Row],[ตามจริง]]=\"\"),\"\",TBL_WeddingRings[[#This Row],[โดยประมาณ]]-TBL_WeddingRings[[#This Row],[ตามจริง]])","v":""}]
[null,"เครื่องประดับแหวน",{"v":100,"d":"฿100.00"},null,{"$f":"IF(OR(TBL_WeddingRings[[#This Row],[โดยประมาณ]]=\"\",TBL_WeddingRings[[#This Row],[ตามจริง]]=\"\"),\"\",TBL_WeddingRings[[#This Row],[โดยประมาณ]]-TBL_WeddingRings[[#This Row],[ตามจริง]])","v":""}]
[null,"ผลรวมของแหวนแต่งงาน",{"$f":"SUBTOTAL(109,TBL_WeddingRings[โดยประมาณ])","v":{"v":1100,"d":"฿1,100.00"}},{"$f":"SUBTOTAL(109,TBL_WeddingRings[ตามจริง])","v":{"v":0,"d":"฿0.00"}},{"$f":"TBL_WeddingRings[[#Totals],[โดยประมาณ]]-TBL_WeddingRings[[#Totals],[ตามจริง]]","v":{"v":1100,"d":"฿1,100.00"}}]
[]
[]
[null,"การเดินทาง  ","โดยประมาณ","ตามจริง","ผลต่าง"]
[null,"เช่ารถยนต์บ่าวสาว",{"v":100,"d":"฿100.00"},null,{"$f":"IF(OR(TBL_Transportation[[#This Row],[โดยประมาณ]]=\"\",TBL_Transportation[[#This Row],[ตามจริง]]=\"\"),\"\",TBL_Transportation[[#This Row],[โดยประมาณ]]-TBL_Transportation[[#This Row],[ตามจริง]])","v":""}]
[null,"เช่ารถยนต์สำหรับแขก",{"v":100,"d":"฿100.00"},null,{"$f":"IF(OR(TBL_Transportation[[#This Row],[โดยประมาณ]]=\"\",TBL_Transportation[[#This Row],[ตามจริง]]=\"\"),\"\",TBL_Transportation[[#This Row],[โดยประมาณ]]-TBL_Transportation[[#This Row],[ตามจริง]])","v":""}]
[null,"การเดินทางสำหรับแขกต่างเมือง",{"v":100,"d":"฿100.00"},null,{"$f":"IF(OR(TBL_Transportation[[#This Row],[โดยประมาณ]]=\"\",TBL_Transportation[[#This Row],[ตามจริง]]=\"\"),\"\",TBL_Transportation[[#This Row],[โดยประมาณ]]-TBL_Transportation[[#This Row],[ตามจริง]])","v":""}]
[null,"บริการนำรถไปจอด",{"v":50,"d":"฿50.00"},null,{"$f":"IF(OR(TBL_Transportation[[#This Row],[โดยประมาณ]]=\"\",TBL_Transportation[[#This Row],[ตามจริง]]=\"\"),\"\",TBL_Transportation[[#This Row],[โดยประมาณ]]-TBL_Transportation[[#This Row],[ตามจริง]])","v":""}]
[null,"ค่าธรรมเนียมเบ็ดเตล็ด",{"v":100,"d":"฿100.00"},null,{"$f":"IF(OR(TBL_Transportation[[#This Row],[โดยประมาณ]]=\"\",TBL_Transportation[[#This Row],[ตามจริง]]=\"\"),\"\",TBL_Transportation[[#This Row],[โดยประมาณ]]-TBL_Transportation[[#This Row],[ตามจริง]])","v":""}]
[null,"ผลรวมของการเดินทาง",{"$f":"SUBTOTAL(109,TBL_Transportation[โดยประมาณ])","v":{"v":450,"d":"฿450.00"}},{"$f":"SUBTOTAL(109,TBL_Transportation[ตามจริง])","v":{"v":0,"d":"฿0.00"}},{"$f":"TBL_Transportation[[#Totals],[โดยประมาณ]]-TBL_Transportation[[#Totals],[ตามจริง]]","v":{"v":450,"d":"฿450.00"}}]